bitfinex/quotes_ETHUSD_20260102
["timestamp","ask_amount","ask_price","bid_price","bid_amount"]
[1767323780293,2.27512361,3017.1,3016.2,2.48626006]
[1767323780673,6.62910174,3017.0,3015.9,0.871]
[1767323780895,2.27512361,3016.9,3015.9,3.35726006]
[1767323781204,2.27512361,3016.9,3015.9,2.48626006]
[1767323782902,3.31475057,3016.9,3015.9,2.48626006]
[1767323783193,2.27512361,3016.8,3015.9,2.82198607]
[1767323784168,2.40904437,3016.1,3015.3,0.001]
[1767323784392,2.40904437,3015.7,3014.9,0.001]
[1767323784971,3.31608966,3015.6,3014.9,0.001]
[1767323785390,5.72779393,3015.6,3014.9,0.001]
[1767323785604,2.41170427,3015.5,3014.9,0.001]
[1767323787073,5.72796971,3015.5,3014.9,0.001]
[1767323787701,6.63236882,3015.5,3014.9,0.001]
[1767323787901,2.41170427,3015.8,3015.0,2.26999074]
[1767323788201,0.24090444,3016.0,3015.2,2.26999074]
[1767323788202,3.3157945,3015.9,3015.2,2.26999074]
[1767323788982,5.72749877,3015.9,3015.2,2.26999074]
[1767323789387,9.04329327,3015.9,3015.2,2.26999074]
[1767323789585,3.34012404,3015.8,3015.2,2.26999074]
[1767323789789,3.34012404,3015.8,3014.9,2.27099074]
[1767323790707,2.41170427,3015.7,3014.9,2.27099074]
[1767323790879,2.41170427,3015.7,3014.9,0.001]
[1767323791080,2.41170427,3015.7,3014.7,2.27099074]
[1767323791275,2.41170427,3015.4,3014.3,2.27099074]
[1767323791476,2.49153397,3015.4,3014.3,2.27099074]
[1767323791677,2.41170427,3015.1,3014.3,2.27099074]
[1767323791884,2.41170427,3014.9,3014.1,0.001]
[1767323792405,2.41170427,3014.9,3013.7,2.26999074]
[1767323792571,2.41170427,3014.7,3013.8,2.49698981]
[1767323792773,0.3362534,3014.8,3013.8,2.49698981]
[1767323792981,3.28270427,3015.0,3014.0,2.26999074]
[1767323793408,3.31685959,3014.9,3014.0,2.26999074]
[1767323793609,6.63371918,3014.9,3014.0,2.26999074]
[1767323794410,5.72856386,3014.9,3014.0,2.26999074]
[1767323794908,9.04542345,3014.9,3014.0,2.26999074]
[1767323795108,0.99164235,3014.8,3014.0,2.26999074]
[1767323795484,3.31707964,3014.7,3014.0,2.26999074]
[1767323796204,3.31707964,3014.7,3013.8,0.22699907]
[1767323796205,2.41170427,3014.6,3013.8,0.22699907]
[1767323796410,2.41170427,3014.6,3013.7,2.26999074]
[1767323797197,2.41170427,3014.6,3013.4,2.26999074]
[1767323797409,2.41170427,3014.6,3013.6,2.26999074]
[1767323797711,4.30862443,3014.8,3013.8,2.26999074]
[1767323797712,7.50493922,3014.8,3013.8,2.26999074]
[1767323798482,2.49153397,3014.7,3014.0,0.001]
[1767323798687,2.41170427,3014.5,3013.8,2.26999074]
[1767323799821,5.72902079,3014.5,3013.8,2.26999074]
[1767323801012,0.871,3014.8,3014.0,2.26999074]
[1767323801210,3.35857895,3014.7,3014.0,2.26999074]
[1767323801378,3.28270427,3015.2,3014.2,2.26999074]
[1767323801600,3.28270427,3015.2,3013.8,0.871]
[1767323801601,3.31663958,3015.1,3014.4,2.26999074]
[1767323802310,3.31663958,3015.1,3014.0,2.26999074]
[1767323802311,2.42166126,3015.0,3014.0,2.26999074]
[1767323803016,2.41170427,3014.8,3014.0,2.26999074]
[1767323803218,2.41170427,3014.6,3013.5,2.26999074]
[1767323803525,2.41170427,3014.4,3013.5,2.26999074]
[1767323804337,0.9508297,3014.7,3013.7,2.26999074]
[1767323804338,0.871,3014.7,3013.7,2.26999074]
[1767323804616,0.871,3014.7,3013.9,2.26999074]
[1767323804617,3.31711656,3014.7,3013.9,2.26999074]
[1767323804912,3.32707355,3014.7,3014.1,2.26999074]
[1767323805088,2.41170427,3014.6,3013.5,2.26999074]
[1767323805285,2.41170427,3014.4,3013.6,2.53349122]
[1767323805489,0.00995699,3014.5,3013.6,2.53349122]
[1767323805891,2.42166126,3014.5,3013.6,2.50030832]
[1767323806212,2.42166126,3014.5,3013.7,0.0331818]
[1767323806213,3.31740976,3014.4,3013.7,0.0331818]
[1767323806584,5.72911403,3014.4,3013.6,2.26999074]
[1767323806805,5.72911403,3014.4,3013.7,0.0331818]
[1767323806994,5.72911403,3014.4,3013.6,2.26999074]
[1767323807208,0.00995699,3014.3,3013.6,2.26999074]
[1767323807520,3.32729882,3014.5,3013.8,2.26999074]
[1767323807889,3.32729882,3014.5,3013.3,0.872]
[1767323807890,0.0798297,3014.1,3013.3,0.001]
[1767323808222,0.0798297,3014.1,3012.6,2.26999074]
[1767323808223,2.41170427,3013.8,3012.6,2.26999074]
[1767323808737,2.41170427,3013.8,3012.3,2.26999074]
[1767323808738,2.49153397,3013.6,3012.3,2.26999074]
[1767323809117,2.41170427,3013.6,3012.3,2.26999074]
[1767323809488,2.41170427,3013.6,3012.2,0.001]
[1767323809489,2.41170427,3013.3,3012.2,2.27099074]
[1767323809720,2.41170427,3013.2,3012.2,2.27099074]
[1767323809929,2.41170427,3013.0,3012.2,2.27099074]
[1767323810086,2.41170427,3013.3,3012.4,2.26999074]
[1767323810286,2.41170427,3013.3,3012.6,2.26999074]
[1767323810287,3.31873091,3013.2,3012.6,2.26999074]
[1767323811226,6.63746182,3013.2,3012.6,2.26999074]
[1767323811723,5.73032622,3013.3,3012.6,2.26999074]
[1767323812121,9.04894817,3013.3,3012.6,2.26999074]
[1767323812920,5.73032622,3013.3,3012.6,2.26999074]
[1767323813120,0.871,3013.5,3012.7,0.03319281]
[1767323813291,2.26700134,3013.5,3012.6,0.22699907]
[1767323813622,2.26700134,3013.5,3012.2,3.34694352]
[1767323813995,2.26700134,3013.5,3012.3,2.47494352]
[1767323814541,2.26700134,3013.5,3012.2,0.001]
[1767323814542,2.28541958,3013.2,3012.2,0.001]
[1767323814906,2.28741958,3013.2,3012.3,2.47494352]
[1767323815202,2.28741958,3013.2,3012.2,0.03419832]
[1767323815203,0.002,3013.2,3012.5,2.47494352]
[1767323815405,0.002,3013.2,3012.6,2.75895139]
[1767323815625,0.002,3013.2,3012.6,2.72575748]
[1767323815827,0.002,3013.2,3012.6,3.59675748]
[1767323816395,0.002,3013.2,3012.6,1.12181396]
[1767323816594,0.002,3013.2,3012.7,2.47494352]
[1767323817192,0.04148138,3013.4,3012.7,2.47494352]
[1767323817426,3.31829295,3013.6,3012.7,2.47494352]
[1767323818401,2.28541958,3013.8,3012.7,2.47494352]
[1767323818637,2.28541958,3013.8,3012.9,2.47494352]
[1767323818826,2.28541958,3013.8,3013.1,2.47494352]
[1767323819141,2.28541958,3013.8,3013.2,2.47494352]
[1767323819698,5.6035069,3013.8,3013.2,2.47494352]
[1767323820328,2.28541958,3013.8,3013.2,2.47494352]
[1767323821002,5.60319719,3014.1,3013.2,2.80953787]
[1767323821198,2.28541958,3014.1,3013.2,2.80953787]
[1767323822610,0.002,3013.6,3013.2,2.80953787]
[1767323822928,2.28541958,3014.1,3013.2,2.80953787]
[1767323824302,2.28541958,3014.4,3013.2,2.80953787]
[1767323824502,3.31744689,3014.4,3013.4,2.47494352]
[1767323824707,2.28541958,3014.4,3013.4,2.47494352]
[1767323824918,0.002,3014.5,3013.4,2.47494352]
[1767323825119,2.28741958,3014.5,3013.4,2.47494352]
[1767323825315,0.002,3014.5,3013.4,2.47494352]
[1767323825519,0.002,3014.5,3013.6,2.47494352]
[1767323825808,0.002,3014.5,3013.7,3.34594352]
[1767323825809,2.28541958,3014.4,3013.7,3.34594352]
[1767323827252,0.002,3014.5,3013.8,2.47494352]
[1767323828620,2.28741958,3014.5,3013.8,2.47494352]
[1767323828821,2.28541958,3014.4,3013.8,2.47494352]
[1767323829017,2.28541958,3014.4,3013.7,0.871]
[1767323829233,2.51416154,3014.4,3013.7,0.871]
[1767323829624,2.51416154,3014.4,3013.7,3.34594352]
[1767323830911,2.51616154,3014.4,3013.7,3.34594352]
[1767323832326,2.28741958,3014.4,3013.7,3.34594352]
[1767323832526,2.28741958,3014.4,3013.8,2.47494352]
[1767323833246,2.28741958,3014.4,3013.9,0.871]
[1767323833712,2.28541958,3014.3,3013.9,0.871]
[1767323835926,0.002,3014.4,3013.9,3.34594352]
[1767323836243,2.28741958,3014.4,3013.9,3.34594352]
[1767323837624,2.28741958,3014.4,3014.0,2.47494352]
[1767323841148,2.28741958,3014.4,3013.9,0.871]
[1767323841319,2.84809188,3014.4,3013.9,0.871]
[1767323841923,2.28541958,3014.3,3013.8,2.47494352]
[1767323842123,2.28541958,3014.3,3013.5,0.001]
[1767323842124,2.28541958,3014.3,3013.9,0.871]
[1767323842431,2.28541958,3014.3,3013.6,2.47494352]
[1767323842661,2.28541958,3014.3,3013.6,2.80963787]
[1767323843345,2.28541958,3014.2,3013.6,2.80963787]
[1767323844529,2.48603169,3014.1,3013.5,0.872]
[1767323845126,2.48603169,3014.1,3013.5,3.33919657]
[1767323845560,0.002,3014.4,3013.6,2.50037947]
[1767323845764,2.42854781,3014.3,3013.6,2.46719657]
[1767323845945,3.00354406,3014.3,3013.5,0.001]
[1767323846272,3.00354406,3014.3,3013.5,2.46819657]
[1767323846629,2.43054781,3014.4,3013.7,2.46719657]
[1767323847066,2.42854781,3014.3,3013.5,2.46819657]
[1767323847883,0.0798297,3015.3,3014.4,2.46719657]
[1767323848155,2.02e-06,3014.9,3014.6,2.46719657]
[1767323848365,2.02e-06,3014.9,3014.7,0.33381966]
[1767323848576,2.02e-06,3014.9,3014.6,2.46719657]
[1767323849676,2.02e-06,3014.9,3014.4,0.871]
[1767323849871,2.02e-06,3014.9,3014.5,2.46719657]
[1767323850871,2.02e-06,3014.9,3014.2,2.46719657]
[1767323852698,2.42754883,3014.2,3013.9,0.001]
[1767323852893,2.42754883,3014.2,3013.5,2.46819657]
[1767323852894,2.42854781,3013.9,3012.9,2.46719657]
[1767323853189,3.92763187,3014.0,3012.5,0.001]
[1767323853190,2.42854781,3013.5,3012.7,2.46719657]
[1767323853546,3.84780217,3013.9,3012.7,2.46719657]
[1767323853547,2.42854781,3013.9,3012.7,2.46719657]
[1767323853744,2.42854781,3013.9,3012.9,2.46719657]
[1767323854076,2.42854781,3013.9,3012.7,2.46719657]
[1767323854378,2.42854781,3013.9,3012.9,2.46719657]
[1767323854379,2.42854781,3013.8,3012.9,2.46719657]
[1767323854587,2.42854781,3013.8,3012.8,0.24681966]
[1767323854770,6.6363606,3013.7,3012.8,0.24681966]
[1767323854973,2.42854781,3013.6,3012.8,0.24681966]
[1767323856184,2.42854781,3014.0,3012.9,2.46719657]
[1767323856392,0.0798297,3014.5,3013.1,2.46719657]
[1767323856709,0.0798297,3014.3,3013.2,0.0331873]
[1767323856864,2.42854781,3014.2,3013.2,0.0331873]
[1767323857064,2.42854781,3014.2,3013.2,2.50038387]
[1767323857274,2.76648556,3014.2,3013.2,2.77756242]
[1767323857464,2.76648556,3014.2,3013.2,2.74437512]
[1767323857884,2.76648556,3014.2,3013.0,0.27140162]
[1767323858181,2.42854781,3014.0,3013.0,2.73859819]
[1767323860466,5.7460797,3014.3,3013.2,2.46719657]
[1767323860955,0.002,3014.0,3013.2,2.46719657]
[1767323861154,0.002,3014.0,3013.4,2.46719657]
[1767323865371,2.43054781,3014.0,3013.4,2.46719657]
[1767323865598,2.43054781,3014.0,3013.3,0.2500385]
[1767323865599,2.42854781,3014.8,3013.6,2.46719657]
[1767323865762,2.50837751,3014.8,3013.7,3.33819657]
[1767323865964,2.50837751,3014.8,3012.8,2.46819657]
[1767323865965,2.42854781,3013.9,3012.8,2.46819657]
[1767323866279,0.0798297,3014.0,3012.8,2.46819657]
[1767323866280,2.42854781,3013.7,3012.8,2.46819657]
[1767323866678,0.0798297,3013.6,3012.8,2.46819657]
[1767323866991,2.42854781,3013.5,3012.8,2.46819657]
[1767323867291,0.0798297,3013.6,3012.8,2.46819657]
[1767323867292,2.42854781,3013.3,3012.8,0.001]
[1767323868473,2.42854781,3013.3,3012.6,0.872]
[1767323868797,2.42854781,3013.2,3012.6,0.001]
[1767323869090,2.42854781,3013.2,3012.3,0.001]
[1767323869091,2.42854781,3013.0,3012.3,0.001]
[1767323869286,2.42854781,3013.0,3012.3,2.46819657]
[1767323869461,2.42854781,3013.0,3012.4,0.03319612]
[1767323869660,2.42854781,3013.0,3012.5,2.46719657]
[1767323871093,2.42854781,3013.0,3012.3,0.001]
[1767323871279,2.67140259,3013.0,3012.3,2.46819657]
[1767323871480,2.42854781,3012.9,3012.3,2.46819657]
[1767323871859,2.42854781,3012.9,3012.3,0.001]
[1767323872496,2.42854781,3012.9,3012.3,0.03419722]
[1767323873199,3.29954781,3013.2,3012.4,2.46719657]
[1767323873504,2.42854781,3013.2,3012.6,2.46719657]
[1767323874300,2.34044033,3013.5,3012.6,2.46719657]
[1767323876196,2.34044033,3013.5,3012.3,0.25133938]
[1767323876197,2.34044033,3013.3,3012.3,2.58658926]
[1767323876395,2.34044033,3013.1,3012.3,2.33624988]
[1767323876566,2.34044033,3013.1,3012.3,0.001]
[1767323876990,0.871,3013.1,3012.3,2.33624988]
[1767323877175,2.34044033,3013.0,3012.3,2.33624988]
[1767323877675,2.34044033,3013.0,3012.5,0.001]
[1767323877866,2.71817387,3013.0,3012.5,0.001]
[1767323878083,2.34044033,3012.9,3012.3,2.33624988]
[1767323878268,2.34044033,3012.9,3012.2,0.001]
[1767323878676,3.6967607,3013.0,3012.0,2.33525191]
[1767323878677,2.34044033,3012.7,3012.0,2.33525191]
[1767323878875,1.10504403,3012.6,3012.0,2.33525191]
[1767323879076,0.871,3012.6,3012.0,2.33525191]
[1767323879281,2.34044033,3012.5,3012.0,2.03e-06]
[1767323880801,0.871,3012.6,3012.0,2.03e-06]
[1767323880975,0.871,3012.7,3012.0,2.03e-06]
[1767323881217,0.871,3012.7,3012.1,2.33524988]
[1767323881372,0.871,3012.7,3012.3,2.33524988]
[1767323883803,2.34044033,3013.0,3012.3,2.33524988]
[1767323884000,2.34044033,3013.4,3012.5,2.33524988]
[1767323884193,2.34044033,3013.4,3012.7,2.33524988]
[1767323885406,0.002,3013.5,3012.7,2.33524988]
[1767323885594,2.34044033,3013.4,3012.7,2.33524988]
[1767323886299,2.34044033,3013.3,3012.7,2.33524988]
[1767323886607,2.34044033,3013.3,3012.7,2.59245933]
[1767323888084,2.34044033,3013.3,3012.7,0.25720945]
[1767323888299,2.34044033,3013.3,3012.4,2.33524988]
[1767323890110,2.34044033,3013.2,3012.4,2.33524988]
[1767323890983,2.34044033,3013.1,3012.4,2.33524988]
[1767323891186,2.34044033,3013.0,3012.4,2.33524988]
[1767323891708,0.872,3013.1,3012.4,2.33524988]
[1767323891909,0.872,3013.1,3012.6,2.33524988]
[1767323892507,2.34044033,3013.0,3012.5,0.23362499]
[1767323893085,2.34044033,3013.0,3012.3,0.001]
[1767323893595,2.34044033,3013.0,3012.4,0.001]
[1767323893812,2.34044033,3013.0,3012.3,0.001]
[1767323894019,2.34044033,3012.9,3012.3,0.001]
[1767323894415,2.34044033,3012.8,3012.3,0.001]
[1767323894826,2.34044033,3012.8,3012.0,2.33525191]
[1767323896816,2.34044033,3012.6,3012.0,2.03e-06]
[1767323897032,2.34044033,3012.4,3011.5,0.001]
[1767323897314,2.34044033,3012.4,3011.5,2.33624988]
[1767323899024,2.34044033,3012.3,3011.5,2.33624988]
[1767323900617,2.34044033,3012.3,3011.4,0.001]
[1767323900801,3.32005312,3012.0,3011.4,0.001]
[1767323901002,2.34044033,3011.8,3011.4,0.001]
[1767323902917,0.872,3011.9,3011.4,2.33624988]
[1767323903927,3.26164377,3011.9,3011.4,2.33624988]
[1767323906139,0.872,3011.9,3011.5,2.46350577]
[1767323907727,0.872,3012.0,3011.5,2.46350577]
[1767323912418,0.872,3012.0,3011.5,2.71005635]
[1767323913306,2.49230885,3012.0,3011.5,2.71005635]
[1767323915337,2.49430885,3012.0,3011.5,2.71005635]
[1767323920526,2.49430885,3012.0,3011.6,0.03320494]
[1767323920734,2.49430885,3012.0,3011.7,2.46350577]
[1767323923747,7.17446013,3012.4,3011.7,2.46350577]
[1767323923748,2.49230885,3012.4,3011.8,2.46350577]
[1767323923918,2.49230885,3012.6,3011.8,2.46350577]
[1767323925744,2.49230885,3012.5,3011.8,2.46350577]
[1767323928450,3.85478598,3012.4,3011.8,2.46350577]
[1767323928651,6.34709483,3012.4,3011.8,2.46350577]
[1767323928848,6.34709483,3012.2,3011.8,2.46350577]
[1767323929047,2.49230885,3012.2,3011.8,2.46350577]
[1767323930368,3.85478598,3012.6,3011.8,2.46350577]
[1767323930521,2.49230885,3012.5,3011.8,2.4967085]
[1767323931141,2.49430885,3012.5,3011.8,2.4967085]
[1767323931351,2.49430885,3012.5,3012.0,2.46350577]
[1767323932857,3.36430885,3012.7,3012.0,2.46350577]
[1767323933035,0.002,3013.3,3012.0,2.46350577]
[1767323933036,2.49230885,3013.0,3012.0,2.46350577]
[1767323933235,2.49230885,3013.0,3012.2,2.46350577]
[1767323934826,4.72678598,3013.1,3012.4,2.44480052]
[1767323934827,0.872,3013.1,3012.4,2.44480052]
[1767323935039,0.002,3013.3,3012.6,2.44480052]
[1767323935558,0.002,3013.4,3012.6,2.44480052]
[1767323936160,0.002,3013.4,3012.7,3.85478598]
[1767323936366,0.002,3013.4,3012.9,2.44480052]
[1767323940665,2.38489422,3013.4,3012.9,2.44480052]
[1767323941278,0.002,3013.4,3012.9,2.44480052]
[1767323941766,2.38489422,3013.4,3012.9,2.44480052]
[1767323946667,2.38289422,3013.2,3012.9,2.44480052]
[1767323947441,2.38489422,3013.4,3012.9,2.44480052]
[1767323952375,2.38489422,3013.4,3012.9,2.68928057]
[1767323955287,0.002,3013.4,3012.9,2.68928057]
[1767323956784,2.38489422,3013.4,3012.9,2.68928057]
[1767323957966,0.002,3013.4,3012.9,2.68928057]
[1767323959186,0.002,3013.5,3013.0,2.44480052]
[1767323959358,0.002,3013.6,3013.1,2.44480052]
[1767323959558,0.872,3014.1,3013.3,2.44480052]
[1767323959559,2.38289422,3014.0,3013.3,2.44480052]
[1767323961173,2.38289422,3014.2,3013.3,2.44480052]
[1767323961377,2.38089624,3014.2,3013.4,2.44480052]
[1767323961575,2.38089624,3014.2,3013.6,2.44480052]
[1767323962993,0.002,3014.3,3013.6,2.44480052]
[1767323963184,2.38489422,3014.3,3013.6,2.44480052]
[1767323964476,2.38489422,3014.3,3013.7,2.48567698]
[1767323964775,0.002,3014.5,3013.8,2.48567698]
[1767323964929,0.002,3014.7,3014.1,2.48567698]
[1767323965381,0.002,3014.8,3014.1,2.48567698]
[1767323965788,2.45893086,3014.8,3014.1,2.48567698]
[1767323967671,0.002,3014.8,3014.2,2.48567698]
[1767323968320,0.00100102,3014.7,3014.2,2.48567698]
[1767323968643,0.00100102,3014.7,3014.4,2.48567698]
[1767323969036,2.45793188,3014.7,3014.0,2.48567698]
[1767323969536,2.45793188,3014.7,3014.1,2.48567698]
[1767323970421,2.45793188,3014.7,3013.6,2.48567698]
[1767323970422,2.45693086,3014.4,3013.6,2.48567698]
[1767323970751,2.45693086,3014.4,3013.6,0.2485677]
[1767323970919,2.45693086,3014.4,3013.4,2.48567698]
[1767323971128,4.72253446,3014.5,3013.4,2.48567698]
[1767323971129,2.45693086,3014.1,3013.4,2.48567698]
[1767323971645,2.45693086,3014.1,3013.5,0.033184]
[1767323972019,2.45693086,3014.1,3013.4,2.48567698]
[1767323973063,2.70262395,3014.1,3013.4,2.48567698]
[1767323974254,2.45693086,3014.1,3013.4,2.48567698]
[1767323974546,2.45693086,3014.1,3013.4,2.51886208]
[1767323975434,2.45693086,3014.1,3013.4,2.48567698]
[1767323977050,2.45693086,3014.1,3013.3,0.001]
[1767323977555,2.45693086,3014.1,3013.3,2.48667698]
[1767323978041,0.002,3014.2,3013.5,2.48567698]
[1767323978242,2.45893086,3014.2,3013.7,2.48567698]
[1767323979037,2.45893086,3014.2,3013.5,2.48567698]
[1767323979527,2.45893086,3014.2,3013.3,2.48667698]
[1767323979727,2.45693086,3014.0,3013.3,2.48667698]
[1767323980780,2.45693086,3014.0,3013.5,2.48567698]
[1767323980958,2.45693086,3014.0,3013.7,2.48567698]
[1767323981271,2.45893086,3014.2,3013.8,2.48567698]
[1767323981959,2.45893086,3014.2,3013.8,2.51885768]
[1767323982163,2.45893086,3014.2,3013.8,3.06939149]
[1767323982563,2.45893086,3014.2,3013.8,2.48567698]
[1767323983082,0.871,3014.6,3013.4,3.31849187]
[1767323983083,2.45793188,3014.7,3014.0,2.48567698]
[1767323983377,0.00100102,3014.7,3014.1,2.48567698]
[1767323983692,0.002,3014.8,3014.3,2.48567698]
[1767323984495,2.45693086,3015.2,3014.2,1.45135039]
[1767323984664,2.45693086,3015.2,3014.3,2.48567698]
[1767323984854,2.45693086,3015.4,3014.3,2.9693406]
[1767323985057,2.45693086,3015.4,3014.3,2.48567698]
[1767323985258,2.45693086,3015.4,3014.5,2.48567698]
[1767323985490,2.45693086,3015.2,3014.5,2.48567698]
[1767323985858,2.45693086,3015.2,3014.4,0.39370274]
[1767323986058,2.45693086,3015.2,3014.2,2.48567698]
[1767323986293,2.45693086,3015.2,3014.3,5.80318669]
[1767323986491,2.45693086,3015.2,3014.3,2.48567698]
[1767323986991,2.45693086,3015.2,3014.6,2.48567698]
[1767323988894,2.45693086,3015.2,3014.3,2.48567698]
[1767323989098,2.45693086,3015.2,3014.4,3.06932365]
[1767323990295,2.45693086,3015.2,3014.5,2.48567698]
[1767323990997,2.45693086,3015.2,3014.5,2.51884997]
[1767323991193,2.45693086,3015.2,3014.5,2.48567698]
[1767323992574,2.45893086,3015.2,3014.5,2.48567698]
[1767323992774,2.45893086,3015.2,3014.5,2.76741767]
[1767323992974,2.45893086,3015.2,3014.5,2.73424468]
[1767323994087,2.45893086,3015.2,3014.7,2.31464359]
[1767323995102,2.27214322,3015.4,3014.8,0.03316969]
[1767323995401,2.27214322,3015.4,3014.5,3.56584449]
[1767323995402,2.27214322,3015.4,3014.9,2.31464359]
[1767323995780,0.002,3015.5,3014.9,2.31464359]
[1767323996007,2.27414322,3015.3,3014.9,2.31464359]
[1767323997318,2.27414322,3015.3,3014.6,2.31464359]
[1767323997473,2.27414322,3015.3,3014.8,2.31464359]
[1767324001186,0.002,3015.3,3014.8,2.31464359]
[1767324001891,2.27414322,3015.3,3014.8,2.31464359]
[1767324002222,2.27414322,3015.3,3014.6,0.871]
[1767324002399,2.27414322,3015.3,3014.7,2.31464359]
[1767324002608,2.27414322,3015.3,3014.7,3.03906472]
[1767324005029,2.27414322,3015.3,3014.7,0.72442113]
[1767324005234,2.27414322,3015.3,3014.5,6.12464359]
[1767324005402,2.27414322,3015.3,3014.5,2.31464359]
[1767324006931,2.27414322,3015.3,3014.2,2.31464359]
[1767324006932,2.27214322,3015.2,3014.2,2.31464359]
[1767324008429,2.27214322,3015.2,3013.7,4.22232551]
[1767324008618,2.27214322,3015.2,3013.8,2.73687614]
[1767324008619,2.27214322,3015.0,3013.8,2.73687614]
[1767324011223,5.58892349,3015.0,3013.8,2.73687614]
[1767324011410,2.27214322,3014.9,3013.8,2.73687614]
[1767324011615,2.27214322,3014.7,3013.8,2.73687614]
[1767324012215,0.871,3015.0,3013.8,2.73687614]
[1767324012534,2.27214322,3014.9,3014.0,2.31464359]
[1767324014831,2.27214322,3014.8,3013.6,3.31826081]
[1767324015028,2.27214322,3014.8,3013.5,2.31464359]
[1767324016249,2.27214322,3014.6,3013.5,2.31464359]
[1767324016423,3.31707964,3014.7,3013.5,2.31464359]
[1767324016424,2.27214322,3014.4,3013.5,2.87816959]
[1767324016610,2.27214322,3014.4,3014.0,0.001]
[1767324017309,2.27214322,3014.4,3013.5,2.31464359]
[1767324018158,2.27214322,3014.2,3013.3,0.001]
[1767324018461,2.27214322,3014.0,3013.2,0.001]
[1767324018664,2.27214322,3013.8,3013.2,0.001]
[1767324019234,2.27214322,3013.8,3013.2,2.31564359]
[1767324019462,2.27214322,3013.8,3013.2,0.001]
[1767324020867,2.27214322,3013.8,3013.2,2.31564359]
[1767324022664,0.64609933,3013.8,3013.2,2.31564359]
[1767324022848,2.27214322,3013.7,3013.2,2.31564359]
[1767324023045,2.27214322,3013.6,3012.9,0.001]
[1767324023371,2.27214322,3013.4,3012.9,2.31564359]
[1767324025257,2.27214322,3013.4,3013.1,0.001]
[1767324026083,2.27214322,3013.4,3013.0,2.47928449]
[1767324026084,2.49935754,3013.4,3012.9,0.001]
[1767324026375,2.49935754,3013.4,3012.9,2.48028449]
[1767324026569,2.27214322,3013.4,3012.9,2.48028449]
[1767324027975,2.27214322,3013.4,3013.0,2.47928449]
[1767324028177,2.27214322,3013.4,3012.9,0.001]
[1767324028561,2.27214322,3013.4,3012.9,2.48028449]
[1767324030184,3.14314322,3013.4,3012.9,2.48028449]
[1767324030353,2.31935103,3013.3,3012.9,2.48028449]
[1767324030957,0.871,3013.4,3013.0,2.47928449]
[1767324031358,2.31935103,3013.3,3013.0,2.47928449]
[1767324031784,0.871,3013.4,3013.0,2.47928449]
[1767324033986,3.19035103,3013.4,3013.0,2.47928449]
[1767324034687,3.19035103,3013.4,3013.0,2.48028449]
[1767324039191,0.871,3013.4,3013.0,2.48028449]
[1767324039414,0.871,3013.4,3013.0,2.72841294]
[1767324039590,3.19035103,3013.4,3013.0,2.72841294]
[1767324041103,2.31935103,3013.4,3013.0,2.72841294]
[1767324042490,2.32135103,3013.4,3013.0,2.72841294]
[1767324042681,2.32135103,3013.4,3013.0,2.48028449]
[1767324044577,0.871,3013.5,3013.1,2.47928449]
[1767324045799,3.19035103,3013.5,3013.1,2.47928449]
[1767324046003,2.31935103,3013.4,3013.1,2.47928449]
[1767324047171,2.31935103,3013.4,3013.0,0.001]
[1767324047388,2.31935103,3013.4,3012.8,2.47928449]
[1767324047389,2.31935103,3013.2,3012.8,2.47928449]
[1767324051709,2.31935103,3013.6,3013.0,3.85118509]
[1767324052012,0.002,3013.8,3013.1,2.47928449]
[1767324052013,2.31935103,3013.7,3013.1,2.47928449]
[1767324052303,0.002,3013.8,3013.3,2.47928449]
[1767324053112,0.871,3014.0,3013.3,2.47928449]
[1767324053876,3.19560285,3014.0,3013.3,2.47928449]
[1767324054494,2.32460285,3013.9,3013.3,2.47928449]
[1767324058211,2.32460285,3013.9,3012.8,3.32009823]
[1767324058403,2.32460285,3013.9,3013.0,2.31148441]
[1767324058600,2.32460285,3013.9,3013.0,2.31248441]
[1767324058833,2.32660285,3013.9,3013.0,2.31248441]
[1767324060021,2.32460285,3013.5,3013.0,2.31248441]
[1767324060838,2.32660285,3013.9,3013.1,2.34467282]
[1767324061043,3.19560285,3013.7,3013.3,2.31148441]
[1767324061418,2.32460285,3013.7,3013.3,2.31148441]
[1767324061644,2.32460285,3013.7,3013.2,2.31148441]
[1767324063575,2.32460285,3013.7,3013.4,2.31148441]
[1767324066962,2.32460285,3013.5,3013.0,0.001]
[1767324067260,0.871,3013.8,3013.1,2.31148441]
[1767324067261,2.32460285,3013.7,3013.1,2.31148441]
[1767324067677,2.32660285,3013.7,3013.1,2.31148441]
[1767324069692,0.871,3013.8,3013.1,2.31148441]
[1767324069851,0.002,3013.9,3013.3,2.31148441]
[1767324070269,2.32460285,3014.6,3013.4,2.31148441]
[1767324070492,0.002,3014.7,3014.0,2.31148441]
[1767324070680,2.32460285,3014.6,3013.4,0.0331851]
[1767324070886,2.32460285,3014.2,3013.5,2.31148441]
[1767324071074,2.32460285,3014.2,3013.5,2.62973285]
[1767324074200,2.32460285,3013.6,3013.3,0.871]
[1767324075390,2.32460285,3013.6,3013.0,0.001]
[1767324079640,2.32460285,3013.5,3012.7,0.001]
[1767324079829,2.32460285,3013.2,3012.7,0.001]
[1767324080342,2.32460285,3013.2,3012.7,2.31248441]
[1767324084310,2.32460285,3013.2,3012.8,2.49689352]
[1767324084634,2.32460285,3013.2,3012.8,2.46370181]
[1767324086257,4.18944094,3013.5,3012.8,2.46370181]
[1767324086421,7.62692173,3013.5,3012.8,2.46370181]
[1767324087421,10.94538878,3013.5,3012.8,2.46370181]
[1767324087624,2.44247111,3013.4,3012.8,2.46370181]
[1767324088424,2.44247111,3013.2,3012.8,2.46370181]
[1767324089029,2.44247111,3013.2,3012.6,0.001]
[1767324089233,10.48868494,3013.3,3012.7,1.67140772]
[1767324089234,2.44247111,3013.0,3012.7,1.67140772]
[1767324089429,0.871,3013.0,3012.6,0.001]
[1767324089633,2.44247111,3012.9,3012.6,0.001]
[1767324090952,2.44247111,3012.9,3012.8,0.001]
[1767324091254,3.31855552,3013.4,3012.8,1.67240772]
[1767324091255,0.871,3013.3,3012.8,1.67240772]
[1767324091457,2.44247111,3013.2,3012.8,1.67240772]
[1767324091822,2.44247111,3013.2,3012.8,0.001]
[1767324093564,2.44247111,3013.2,3012.6,1.67240772]
[1767324094838,2.44247111,3013.2,3012.8,1.67240772]
[1767324095038,2.44247111,3013.4,3012.8,1.67240772]
[1767324095271,3.31347111,3013.3,3012.8,1.67240772]
[1767324095471,3.31347111,3013.3,3012.8,1.83974849]
[1767324095635,2.44247111,3013.3,3012.8,1.83974849]
[1767324095943,3.31347111,3013.4,3013.0,1.67240772]
[1767324096348,2.44247111,3013.3,3012.7,1.67240772]
[1767324097857,2.44247111,3013.2,3012.6,0.001]
[1767324098056,2.44247111,3013.1,3012.1,1.67440772]